bitfinex-derivatives/quotes_SOLF0:USTF0_20240912
["timestamp","ask_amount","ask_price","bid_price","bid_amount"]
[1726135697668,3.3503,134.31,134.28,4.0731]
[1726135698258,3.3503,134.31,134.29,3.3507]
[1726135698755,3.3503,134.31,134.28,4.0731]
[1726135699760,3.3503,134.31,134.28,7.424]
[1726135701661,3.3503,134.31,134.29,3.3507]
[1726135702064,3.3502,134.32,134.29,3.3507]
[1726135702768,103.70797772,134.37,134.31,11.43]
[1726135702965,103.70797772,134.37,134.32,12.7914]
[1726135703963,3.3494,134.35,134.32,16.1413]
[1726135704657,3.3492,134.36,134.33,3.3497]
[1726135704855,103.70797772,134.37,134.32,12.7914]
[1726135705070,103.70797772,134.37,134.33,1.4036]
[1726135705272,107.05687772,134.37,134.34,3.3494]
[1726135705660,107.05687772,134.37,134.33,1.4036]
[1726135705661,103.70797772,134.37,134.33,1.4036]
[1726135706369,7.9946,134.44,134.33,12.8336]
[1726135706571,11.43,134.4,134.33,12.8336]
[1726135706771,3.3487,134.38,134.33,12.8336]
[1726135707162,11.43,134.4,134.33,1.4036]
[1726135707358,11.43,134.39,134.33,12.8336]
[1726135707863,3.3489,134.37,134.34,3.3493]
[1726135710571,3.3487,134.38,134.33,12.8336]
[1726135710774,3.71621118,134.41,134.33,12.8336]
[1726135710980,11.43,134.4,134.33,12.8336]
[1726135711663,3.3486,134.38,134.35,3.3491]
[1726135712171,3.3489,134.37,134.34,3.3494]
[1726135713278,3.3481,134.4,134.37,3.3487]
[1726135713668,11.43,134.41,134.37,3.3487]
[1726135713873,3.348,134.4,134.37,3.3487]
[1726135717372,3.3483,134.39,134.36,3.3489]
[1726135718380,11.43,134.38,134.33,1.4036]
[1726135718980,3.3492,134.36,134.33,3.3496]
[1726135719381,11.43,134.38,134.33,3.3496]
[1726135721686,11.43,134.36,134.32,2.7392]
[1726135721878,11.43,134.36,134.32,1.3614]
[1726135722079,3.3496,134.34,134.32,1.3614]
[1726135722784,3.3492,134.36,134.32,1.3614]
[1726135723783,3.3492,134.36,134.33,3.3496]
[1726135724169,3.3493,134.35,134.33,3.3496]
[1726135726081,3.3493,134.35,134.32,4.7113]
[1726135727389,3.3493,134.35,134.33,3.3497]
[1726135728088,3.3491,134.36,134.33,3.3496]
[1726135728475,11.43,134.37,134.33,3.3496]
[1726135728675,3.349,134.36,134.33,3.3496]
[1726135731779,3.3494,134.35,134.32,4.7112]
[1726135732188,3.3494,134.35,134.33,3.3497]
[1726135736194,3.3492,134.36,134.33,3.3497]
[1726135736895,3.3492,134.36,134.34,3.3495]
[1726135738894,3.3489,134.37,134.34,3.3495]
[1726135739281,3.3489,134.37,134.35,3.3492]
[1726135739797,3.3489,134.37,134.34,3.3494]
[1726135740296,3.3486,134.38,134.35,3.3491]
[1726135741295,3.3486,134.38,134.35,3.3492]
[1726135742499,3.3486,134.38,134.36,3.3489]
[1726135742689,3.3483,134.39,134.36,11.43]
[1726135743495,3.3483,134.39,134.37,3.3486]
[1726135744488,3.3483,134.39,134.36,3.3489]
[1726135744686,3.3483,134.39,134.32,4.1004]
[1726135744896,11.43,134.39,134.32,4.1004]
[1726135745095,11.43,134.38,134.33,6.14330664]
[1726135745297,3.3487,134.38,134.33,11.43]
[1726135745494,11.43,134.4,134.32,7.75557754]
[1726135745696,11.43,134.4,134.33,11.43]
[1726135746191,103.66075645,134.41,134.34,3.3493]
[1726135746400,11.43,134.39,134.34,3.3493]
[1726135747597,3.3486,134.38,134.34,3.3493]
[1726135747903,11.43,134.39,134.34,3.3493]
[1726135748302,3.3489,134.37,134.34,3.3493]
[1726135750606,3.3486,134.38,134.35,3.3492]
[1726135751207,3.3487,134.37,134.35,3.3492]
[1726135752502,3.3487,134.37,134.34,14.7794]
[1726135752903,3.3492,134.36,134.32,4.1004]
[1726135753110,3.3492,134.36,134.33,3.3496]
[1726135753408,3.3492,134.36,134.33,14.7796]
[1726135755704,3.3492,134.36,134.33,3.3496]
[1726135755910,3.3492,134.36,134.33,14.7796]
[1726135756108,3.3488,134.37,134.34,3.3493]
[1726135756499,3.3488,134.37,134.33,11.43]
[1726135756500,3.3491,134.36,134.33,14.7797]
[1726135757705,3.3488,134.37,134.34,3.3494]
[1726135758303,3.349,134.36,134.33,3.3497]
[1726135758611,3.349,134.36,134.33,14.7797]
[1726135759206,3.349,134.36,134.33,3.3497]
[1726135760706,3.3488,134.37,134.34,3.3493]
[1726135761010,3.3487,134.38,134.35,14.7791]
[1726135761305,118.87192844,134.41,134.35,11.43]
[1726135761511,11.43,134.4,134.33,11.43]
[1726135762211,3.3489,134.37,134.34,3.3494]
[1726135762612,11.43,134.4,134.33,11.43]
[1726135762812,3.3491,134.36,134.33,14.7796]
[1726135768716,3.3488,134.37,134.33,11.43]
[1726135769017,3.3488,134.37,134.35,11.43]
[1726135769914,3.3488,134.37,134.35,14.7792]
[1726135772211,3.3486,134.38,134.35,14.7792]
[1726135772413,3.3486,134.38,134.36,3.3489]
[1726135772814,103.66075645,134.41,134.37,3.3485]
[1726135773010,10.34580421,134.49,134.39,11.43]
[1726135773329,11.43,134.44,134.33,5.96987538]
[1726135773625,11.43,134.44,134.38,11.43]
[1726135773814,3.3479,134.41,134.38,14.7783]
[1726135774015,11.43,134.44,134.32,7.81717518]
[1726135774207,11.43,134.44,134.33,6.14235784]
[1726135774416,3.3482,134.4,134.37,14.7787]
[1726135779016,5.2362043,134.48,134.39,3.3482]
[1726135779213,11.43,134.45,134.39,3.3482]
[1726135780815,3.3476,134.42,134.39,3.3482]
[1726135781012,5.2362043,134.48,134.4,11.43]
[1726135781216,11.43,134.46,134.4,11.43]
[1726135782013,3.3473,134.43,134.4,14.7778]
[1726135783128,3.3473,134.43,134.41,3.3477]
[1726135783318,3.3473,134.43,134.4,11.43]
[1726135783517,3.3473,134.43,134.4,14.7779]
[1726135785330,5.2362043,134.48,134.4,3.3479]
[1726135785331,11.43,134.45,134.4,3.3479]
[1726135785522,11.43,134.45,134.39,3.3482]
[1726135785722,3.3477,134.42,134.39,14.7782]
[1726135786128,11.43,134.45,134.39,14.7782]
[1726135786630,3.3476,134.42,134.39,14.7782]
[1726135791222,3.3476,134.42,134.4,3.348]
[1726135792032,3.3474,134.43,134.4,3.348]
[1726135795430,3.3474,134.43,134.41,3.3477]
[1726135795831,11.43,134.46,134.41,3.3477]
[1726135795832,3.3472,134.44,134.41,3.3477]
[1726135798335,3.3472,134.44,134.4,12.7512]
[1726135799228,3.3472,134.44,134.41,3.3475]
[1726135800540,3.3472,134.44,134.41,14.7775]
[1726135800941,3.3473,134.43,134.41,14.7775]
[1726135801242,3.3473,134.43,134.41,3.3475]
[1726135801839,3.3471,134.44,134.41,3.3475]
[1726135803633,3.3471,134.44,134.41,14.7775]
[1726135804342,11.43,134.46,134.4,4.0104]
[1726135805040,15.16976782,134.46,134.4,4.0104]
[1726135805341,11.43,134.46,134.4,7.3584]
[1726135805728,3.3474,134.43,134.4,7.3584]
[1726135809047,3.3475,134.42,134.4,7.3584]
[1726135811247,3.3475,134.42,134.4,1.3212]
[1726135815845,3.3475,134.42,134.4,12.7512]
[1726135816839,3.3475,134.42,134.4,1.3212]
[1726135817245,3.3477,134.41,134.38,14.7784]
[1726135818958,3.3477,134.41,134.39,3.3482]
[1726135835154,3.3476,134.42,134.39,3.3482]
[1726135835761,3.3478,134.41,134.39,3.3482]
[1726135836161,3.3478,134.41,134.39,14.7782]
[1726135839263,3.348,134.4,134.37,11.43]
[1726135839460,3.348,134.4,134.38,6.14205639]
[1726135839659,3.348,134.4,134.37,11.43]
[1726135840060,3.348,134.4,134.38,6.14206599]
[1726135840264,3.348,134.4,134.37,11.43]
[1726135840465,104.91431496,134.46,134.38,9.49049771]
[1726135840466,3.3479,134.41,134.38,9.49049771]
[1726135840667,3.3479,134.41,134.38,3.3484]
[1726135841365,3.3479,134.41,134.39,6.14209346]
[1726135841667,3.3479,134.41,134.38,3.3484]
[1726135841869,3.3479,134.41,134.39,6.14209346]
[1726135842170,3.3479,134.41,134.38,3.3484]
[1726135842354,3.3479,134.41,134.39,6.14206175]
[1726135842560,3.3479,134.41,134.38,3.3484]
[1726135842757,3.3479,134.41,134.39,6.14206175]
[1726135842968,3.3479,134.41,134.38,3.3484]
[1726135843469,3.3479,134.41,134.39,6.14209346]
[1726135843663,3.3479,134.41,134.38,3.3484]
[1726135843973,3.3479,134.41,134.39,6.14209346]
[1726135844272,3.3479,134.41,134.38,3.3484]
[1726135844464,3.3479,134.41,134.39,6.14209346]
[1726135844668,3.3479,134.41,134.38,3.3484]
[1726135845164,3.3479,134.41,134.39,6.14209346]
[1726135845363,3.3479,134.41,134.38,3.3484]
[1726135845566,3.3479,134.41,134.39,6.14209346]
[1726135845767,3.3479,134.41,134.38,3.3484]
[1726135845969,3.3479,134.41,134.39,6.14209346]
[1726135846170,3.3479,134.41,134.38,3.3484]
[1726135846372,3.3481,134.4,134.39,6.14209346]
[1726135847173,3.3481,134.4,134.38,3.3484]
[1726135847375,3.3481,134.4,134.39,6.14209346]
[1726135850374,3.3481,134.4,134.38,3.3484]
[1726135850581,3.3481,134.4,134.39,6.14209458]
[1726135851367,3.3479,134.41,134.39,6.14209458]
[1726135851674,3.3479,134.41,134.38,3.3484]
[1726135851874,104.91431496,134.46,134.36,1.4175]
[1726135851875,104.91431496,134.46,134.4,11.43]
[1726135852073,3.62858206,134.49,134.42,11.43]
[1726135852281,1.4046,134.52,134.44,11.43]
[1726135852478,12.57952624,134.51,134.45,11.43]
[1726135852664,1.4046,134.52,134.47,11.43]
[1726135852865,1.14948096,134.51,134.47,11.43]
[1726135853064,3.3457,134.5,134.47,11.43]
[1726135854482,3.3454,134.51,134.48,11.43]
[1726135854975,11.43,134.55,134.49,11.43]
[1726135855980,3.3452,134.52,134.49,11.43]
[1726135856189,3.3452,134.52,134.49,14.7758]
[1726135856370,11.43,134.55,134.49,14.7758]
[1726135856771,3.3449,134.53,134.49,14.7758]
[1726135857166,3.3449,134.53,134.49,11.43]
[1726135857773,3.345,134.52,134.49,11.43]
[1726135858577,3.3448,134.53,134.49,14.7757]
[1726135858783,11.43,134.55,134.49,14.7757]
[1726135859183,3.345,134.52,134.49,3.3457]
[1726135859482,3.345,134.52,134.49,11.43]
[1726135859875,3.3454,134.51,134.49,11.43]
[1726135860186,11.43,134.55,134.49,11.43]
[1726135860375,3.3452,134.52,134.49,11.43]
[1726135861677,11.43,134.55,134.49,11.43]
[1726135861987,11.43,134.54,134.48,12.8152]
[1726135862382,3.3455,134.51,134.48,12.8152]
[1726135862584,3.3455,134.51,134.48,16.1612]
[1726135864193,3.3455,134.51,134.48,12.8152]
[1726135865485,3.3455,134.51,134.48,16.1612]
[1726135865683,396.0281056,134.57,134.49,11.43]
[1726135865684,3.3452,134.52,134.49,11.43]
[1726135866292,3.3448,134.53,134.49,14.7756]
[1726135866492,3.3448,134.53,134.51,11.43]
[1726135868496,3.345,134.52,134.51,11.43]
[1726135870393,6.684,134.65,134.51,11.43]
[1726135870601,12.7385,134.61,134.55,11.43]
[1726135870897,1.14998208,134.6,134.56,11.43]
[1726135871501,1.3085,134.61,134.56,11.43]
[1726135871900,3.3434,134.59,134.56,14.7739]
[1726135872705,3.3435,134.58,134.56,11.43]
[1726135873304,3.3434,134.59,134.56,14.7739]
[1726135874600,3.75195123,134.63,134.58,11.43]
[1726135874808,1.15021755,134.62,134.58,11.43]
[1726135875008,3.3429,134.61,134.58,14.7735]
[1726135875208,11.43,134.64,134.58,14.7735]
[1726135875416,1.15023333,134.63,134.58,14.7735]
[1726135875602,1.15023333,134.63,134.58,11.43]
[1726135876306,3.343,134.6,134.58,11.43]
[1726135877706,3.343,134.6,134.58,14.7735]
[1726135877903,3.3429,134.61,134.58,14.7735]
[1726135878312,11.43,134.64,134.59,14.7733]
[1726135878905,5.00954536,134.66,134.59,14.7733]
[1726135879214,12.7871,134.66,134.59,14.7733]
[1726135879608,12.7871,134.66,134.6,14.773]
[1726135880002,1.3571,134.66,134.6,11.43]
[1726135880309,360.62976498,134.74,134.62,11.43]
[1726135880607,3.342,134.65,134.62,11.43]
[1726135881209,11.43,134.67,134.62,11.43]
[1726135881913,3.3422,134.64,134.62,11.43]
[1726135882808,3.3423,134.63,134.62,11.43]
[1726135883010,11.43,134.67,134.62,11.43]
[1726135883309,1.3596,134.68,134.62,11.43]
[1726135883904,1.3596,134.68,134.63,11.43]
[1726135884316,3.3418,134.65,134.63,11.43]
[1726135888419,3.3416,134.66,134.63,14.7722]
[1726135890009,11.43,134.7,134.65,11.43]
[1726135890010,3.3414,134.67,134.65,11.43]
[1726135890211,1.3578,134.72,134.65,11.43]
[1726135890411,12.58103728,134.71,134.65,11.43]
[1726135890615,11.43,134.71,134.65,11.43]
[1726135890818,3.3412,134.68,134.65,14.7718]
[1726135891325,3.3412,134.68,134.65,11.43]
[1726135892221,3.3412,134.68,134.66,11.43]
[1726135895914,3.3413,134.67,134.66,11.43]
[1726135896217,3.3413,134.67,134.64,14.7719]
[1726135897518,3.3416,134.66,134.64,11.43]
[1726135900618,3.3414,134.67,134.64,14.7719]
[1726135900820,3.3414,134.67,134.66,11.43]
[1726135907526,3.3416,134.66,134.65,11.43]
[1726135908023,3.3419,134.65,134.61,4.058]
[1726135908241,3.3419,134.65,134.63,11.43]
[1726135908827,3.342,134.64,134.61,7.4006]
[1726135909017,11.43,134.69,134.63,11.43]
[1726135909423,11.43,134.69,134.63,14.7723]
[1726135909623,11.43,134.69,134.63,11.43]
[1726135910320,11.43,134.69,134.64,11.43]
[1726135910522,3.3418,134.65,134.64,11.43]
[1726135912028,15.19346482,134.69,134.61,4.058]
[1726135912226,15.19346482,134.69,134.62,11.43]
[1726135912426,15.19346482,134.69,134.61,2.7638]
[1726135912630,12.58012577,134.68,134.56,1.3049]
[1726135912933,11.43,134.68,134.61,11.43]
[1726135913136,3.3424,134.63,134.61,11.43]
[1726135916822,3.3424,134.63,134.61,14.7727]
[1726135917037,3.3421,134.64,134.61,11.43]
[1726135917638,3.3419,134.65,134.62,3.3425]
[1726135918135,3.342,134.64,134.62,14.7725]
[1726135918330,1.3261,134.67,134.62,14.7725]
[1726135918532,1.3261,134.67,134.64,11.43]
[1726135919136,3.3418,134.65,134.64,11.43]
[1726135923525,1.3261,134.67,134.62,11.43]
[1726135924135,3.3423,134.63,134.62,11.43]
[1726135924335,1.3261,134.67,134.62,11.43]
[1726135924734,3.3423,134.64,134.62,11.43]
[1726135925034,1.3261,134.67,134.62,14.7724]
[1726135925939,3.76346482,134.69,134.64,11.43]
[1726135926336,18.1111,134.71,134.64,11.43]
[1726135926532,1.14950748,134.7,134.64,14.772]
[1726135926733,1.14949983,134.69,134.64,14.772]
[1726135927033,11.43,134.71,134.64,11.43]
[1726135927233,3.3417,134.66,134.64,11.43]
[1726135928239,3.3418,134.65,134.64,11.43]
[1726135929138,3.3418,134.65,134.62,4.6966]
[1726135929139,11.43,134.68,134.61,1.4106]
[1726135929335,11.43,134.68,134.62,11.43]
[1726135930035,3.3422,134.64,134.62,11.43]
[1726135932442,3.3422,134.64,134.62,14.7724]
[1726135933554,3.3419,134.65,134.62,14.7724]
[1726135933750,8.0663,134.72,134.64,11.43]
[1726135934048,3.3418,134.66,134.64,11.43]
[1726135934750,3.3418,134.66,134.64,14.772]
[1726135934962,11.43,134.69,134.61,4.0732]
[1726135935135,12.57991898,134.68,134.62,11.43]
[1726135935339,11.43,134.68,134.62,11.43]
[1726135935541,3.3422,134.64,134.62,11.43]
[1726135937452,3.3422,134.64,134.62,14.7725]
[1726135937845,3.3419,134.65,134.63,11.43]
[1726135938743,3.342,134.64,134.63,11.43]
[1726135938954,11.43,134.68,134.61,1.4106]
[1726135939157,12.57994059,134.67,134.59,11.43]
[1726135939346,12.8429,134.67,134.59,14.7731]
[1726135939747,1.14995935,134.66,134.59,14.7731]
[1726135940045,3.3425,134.62,134.59,14.7731]
[1726135940841,3.3424,134.63,134.61,11.43]
[1726135941847,3.3424,134.63,134.61,14.7727]
[1726135942043,3.3421,134.64,134.61,14.7727]
[1726135943259,3.3423,134.63,134.61,11.43]
[1726135943747,3.3422,134.64,134.61,14.7727]
[1726135944353,3.3422,134.64,134.62,11.43]
[1726135955164,3.3423,134.63,134.62,11.43]
[1726135956564,1.4129,134.67,134.61,11.43]
[1726135956565,3.3428,134.62,134.61,11.43]
[1726135960268,11.43,134.64,134.58,1.3051]
[1726135960463,11.43,134.64,134.57,16.1096]
[1726135960868,3.3431,134.6,134.57,16.1096]
[1726135965869,3.3433,134.59,134.57,4.6796]
[1726135966070,3.3433,134.59,134.57,16.1096]
[1726135967661,3.3433,134.59,134.57,4.6796]
[1726135967862,3.3433,134.59,134.57,16.1096]
[1726135968267,3.3432,134.6,134.57,16.1096]
[1726135972481,3.3432,134.6,134.58,11.43]
[1726135976262,3.3432,134.6,134.57,16.1096]
[1726135978867,3.3429,134.61,134.58,14.7735]
[1726135979470,3.3429,134.61,134.58,16.1631]
[1726135980576,3.3431,134.6,134.58,16.1631]
[1726135982379,3.3431,134.6,134.58,12.8196]
[1726135984973,3.3431,134.6,134.58,16.1631]
[1726135986073,3.343,134.61,134.58,16.1631]
[1726135986684,3.3426,134.62,134.59,14.7732]
[1726135988778,3.3426,134.62,134.6,11.43]
[1726135988979,3.3424,134.63,134.6,14.7729]
[1726135989284,3.3424,134.63,134.61,11.43]
[1726135989978,3.3422,134.64,134.61,14.7728]
[1726135992371,10.46498007,134.69,134.61,14.7728]
[1726135992679,1.15106182,134.68,134.63,11.43]
[1726135993480,3.342,134.64,134.63,11.43]
[1726135996284,104.76931713,134.71,134.63,11.43]
[1726135996285,11.43,134.7,134.63,11.43]
[1726135996588,1.15103239,134.69,134.66,11.43]
[1726135996784,4.49223239,134.68,134.66,11.43]
[1726135997091,103.42891713,134.71,134.66,11.43]
[1726135997287,3.3409,134.69,134.66,14.7714]
[1726135997887,3.3411,134.68,134.66,14.7714]
[1726135998389,3.3411,134.68,134.66,11.43]
[1726136000179,103.42891713,134.71,134.66,11.43]
[1726136000479,103.42891713,134.71,134.65,11.43]
[1726136000987,3.3414,134.67,134.65,11.43]
[1726136001186,3.3414,134.67,134.65,14.7718]
[1726136002384,3.3412,134.68,134.65,14.7718]
[1726136003491,3.3412,134.68,134.66,11.43]
[1726136003689,3.3412,134.68,134.66,14.7715]
[1726136003877,3.3409,134.69,134.66,14.7715]
[1726136009088,3.3409,134.69,134.67,3.3413]
[1726136012583,3.3411,134.68,134.66,14.7714]
[1726136013991,3.3409,134.69,134.66,14.7714]
[1726136017095,3.3409,134.69,134.67,3.3413]
[1726136017998,3.3407,134.7,134.68,3.341]
[1726136019188,103.42891713,134.71,134.68,3.341]
[1726136019390,378.80086536,134.75,134.68,11.43]
[1726136019789,3.3401,134.72,134.7,11.43]
[1726136021288,3.3399,134.73,134.7,14.7705]
[1726136022292,3.3402,134.72,134.7,11.43]
[1726136025894,3.3402,134.72,134.7,14.7705]
[1726136026799,3.3402,134.72,134.7,11.43]
[1726136028094,3.3402,134.72,134.7,14.7705]
[1726136030200,3.3399,134.73,134.7,14.7705]
[1726136034707,3.3399,134.73,134.71,11.43]
[1726136036710,3.3396,134.74,134.71,14.7702]
[1726136036906,1.1929,134.79,134.72,11.43]
[1726136037110,3.3395,134.75,134.72,14.77]
[1726136037609,16.54345077,134.79,134.74,11.43]
[1726136038107,3.3393,134.76,134.74,11.43]
[1726136039910,3.3393,134.75,134.74,11.43]
[1726136041810,3.3392,134.76,134.74,11.43]
[1726136043511,11.43,134.78,134.69,1.4174]
[1726136043814,11.43,134.78,134.72,11.43]
[1726136044005,3.3396,134.74,134.72,11.43]
[1726136045808,3.3398,134.73,134.72,11.43]
[1726136046510,3.34,134.72,134.7,11.43]
[1726136047523,3.3399,134.73,134.7,14.7705]
[1726136049216,3.3399,134.73,134.71,11.43]
[1726136053919,11.43,134.76,134.68,2.6973]
[1726136054420,11.43,134.76,134.69,11.43]
[1726136054621,11.43,134.76,134.68,2.6973]
[1726136054816,11.43,134.75,134.68,2.6973]
[1726136055020,12.8115,134.75,134.68,14.1273]
[1726136055208,3.3404,134.71,134.68,17.4683]
[1726136055711,11.43,134.73,134.64,1.4171]
[1726136055920,11.43,134.73,134.67,11.43]
[1726136056323,3.3405,134.71,134.67,14.7713]
[1726136057816,3.3406,134.7,134.67,14.7713]
[1726136060728,3.3408,134.69,134.66,11.43]
[1726136062425,3.3408,134.69,134.66,14.7715]
[1726136064627,3.3407,134.7,134.67,11.43]
[1726136065330,3.3409,134.69,134.67,11.43]
[1726136066330,3.3409,134.69,134.66,14.7715]
[1726136073519,3.341,134.68,134.66,11.43]
[1726136075629,3.3409,134.69,134.66,14.7714]
[1726136079025,3.341,134.68,134.65,4.7492]
[1726136079227,3.341,134.68,134.66,6.13022186]
[1726136079435,3.341,134.68,134.65,16.1792]
[1726136080323,11.43,134.72,134.65,1.4075]
[1726136080324,3.3413,134.67,134.65,1.4075]
[1726136083928,11.43,134.7,134.65,1.4075]
[1726136084634,3.3414,134.67,134.65,1.4075]
[1726136086230,3.3411,134.68,134.65,1.4075]
[1726136086632,3.3411,134.68,134.65,4.7492]
[1726136088046,3.3408,134.69,134.66,3.3415]
[1726136088936,3.3407,134.7,134.66,3.3415]
[1726136089139,3.3407,134.7,134.66,14.7715]
[1726136089332,3.3407,134.7,134.67,3.3413]
[1726136090444,11.43,134.74,134.66,11.43]
[1726136090941,3.3402,134.72,134.68,3.3408]
[1726136091646,3.3402,134.72,134.69,3.3407]
[1726136092746,3.3403,134.71,134.69,3.3407]
[1726136094045,104.78265763,134.75,134.7,3.3403]
[1726136094238,116.21265763,134.75,134.7,3.3403]
[1726136094945,12.8115,134.75,134.71,3.3403]
[1726136095447,3.3399,134.73,134.7,3.3404]
[1726136101354,3.3401,134.72,134.69,14.7707]
[1726136103540,3.3404,134.71,134.68,7.03445317]
[1726136103843,3.3404,134.71,134.68,18.46445317]
[1726136104043,11.43,134.74,134.68,15.12355317]
[1726136104853,3.3405,134.71,134.68,15.12355317]
[1726136108155,3.3405,134.71,134.68,18.46455317]
[1726136109548,3.3405,134.7,134.68,15.12355317]
[1726136110260,3.3405,134.7,134.67,4.6845]
[1726136111459,11.43,134.74,134.68,11.43]
[1726136112252,3.3402,134.72,134.68,14.7709]
[1726136112954,3.3402,134.72,134.69,14.7706]
[1726136118854,3.3402,134.72,134.69,3.3406]
[1726136119150,3.3402,134.72,134.68,3.3409]
[1726136119354,3.3402,134.72,134.68,14.7709]
[1726136119861,11.43,134.74,134.67,1.3433]
[1726136120060,11.43,134.72,134.67,1.3433]
[1726136120260,3.341,134.69,134.65,1.4075]
[1726136120464,11.43,134.7,134.66,6.12995049]
[1726136120762,11.43,134.7,134.62,1.3068]
[1726136120962,11.43,134.68,134.63,17.56088664]
[1726136121164,11.43,134.68,134.64,6.13088664]
[1726136121460,11.43,134.68,134.62,12.7368]
[1726136121663,3.3418,134.65,134.62,12.7368]
[1726136122167,11.43,134.68,134.62,16.0793]
[1726136122358,11.43,134.68,134.62,11.43]
[1726136122758,3.3419,134.65,134.62,11.43]
[1726136126567,11.43,134.67,134.61,2.6337]
[1726136126568,3.3421,134.64,134.61,2.6337]
[1726136127163,3.3424,134.63,134.61,1.3098]
[1726136127361,3.3424,134.63,134.6,11.43]
[1726136127563,11.43,134.64,134.61,6.13219653]
[1726136127757,11.43,134.63,134.58,3.3435]
[1726136127958,11.43,134.63,134.55,2.7233]
[1726136128159,11.43,134.63,134.56,17.56326384]
[1726136128368,3.343,134.6,134.57,9.47686384]
[1726136128575,3.343,134.6,134.57,3.3436]
[1726136128764,3.3428,134.61,134.57,3.3436]
[1726136128964,3.3428,134.61,134.58,3.3435]
[1726136129668,3.3428,134.61,134.57,3.3437]
[1726136129865,11.43,134.63,134.57,3.3437]
[1726136130083,11.43,134.63,134.56,11.43]
[1726136130265,11.43,134.63,134.58,3.3434]
[1726136131370,3.3428,134.61,134.57,3.3437]
[1726136131974,3.343,134.6,134.56,14.7739]
[1726136132369,11.43,134.62,134.56,3.3439]
[1726136132572,3.3431,134.6,134.56,3.3439]
[1726136133760,2.6794,134.64,134.56,11.43]
[1726136133761,3.3429,134.61,134.56,11.43]
[1726136133967,11.43,134.63,134.56,11.43]
[1726136134167,3.343,134.61,134.57,3.3436]
[1726136134575,11.43,134.63,134.56,11.43]
[1726136134777,11.43,134.62,134.56,14.7739]
[1726136135367,3.3432,134.6,134.56,14.7739]
[1726136136377,3.3432,134.6,134.57,3.3437]
[1726136137767,3.3428,134.61,134.57,3.3437]
[1726136140179,3.3431,134.6,134.56,3.3439]
[1726136141475,3.3435,134.59,134.55,6.0674]
[1726136141672,3.3435,134.59,134.55,2.7233]
[1726136141673,11.43,134.59,134.55,2.7233]
[1726136141863,11.43,134.59,134.55,1.318]
[1726136142668,3.3437,134.58,134.55,1.318]
[1726136145875,3.3437,134.58,134.55,4.6623]
[1726136147780,3.3438,134.57,134.55,1.318]
[1726136149583,3.3438,134.57,134.53,11.43]
[1726136150090,3.3438,134.57,134.54,3.3445]
[1726136150880,3.3438,134.57,134.53,14.7746]
[1726136151282,3.3438,134.57,134.53,3.3446]
[1726136151495,3.3438,134.57,134.54,3.3445]
[1726136152583,3.3436,134.58,134.55,3.3442]
[1726136152877,3.3436,134.58,134.49,2.6756]
[1726136152878,3.8725,134.64,134.54,11.43]
[1726136153083,3.3429,134.61,134.57,3.3435]
[1726136155895,3.3429,134.61,134.58,3.3435]